bitfinex/quotes_ETHUSD_20260313
["timestamp","ask_amount","ask_price","bid_price","bid_amount"]
[1773406123321,6.1464063,2146.4,2145.4,1.601]
[1773406123523,6.1444063,2146.4,2145.4,1.601]
[1773406123723,6.1444063,2146.4,2145.4,2.76627598]
[1773406123923,7.30909299,2146.5,2145.0,1.16550116]
[1773406125134,6.1444063,2146.2,2144.8,4.66243865]
[1773406125332,6.1444063,2146.2,2144.8,4.70906304]
[1773406125731,6.37313477,2146.1,2144.8,4.70906304]
[1773406126057,1.16463244,2146.9,2144.8,4.70906304]
[1773406126058,0.08538273,2148.7,2144.9,6.66097522]
[1773406126227,2.63352928,2154.0,2148.7,6.01338701]
[1773406126552,2.63352928,2154.0,2148.6,7.52827544]
[1773406126553,1.39348727,2152.9,2151.6,1.35997277]
[1773406126741,6.37113477,2152.8,2150.7,3.49606886]
[1773406127054,6.37113477,2152.6,2150.5,0.30172719]
[1773406127252,0.30023946,2153.4,2149.2,6.01338701]
[1773406127253,6.37113477,2151.5,2149.2,6.01338701]
[1773406127554,1.16203402,2151.4,2149.2,6.01338701]
[1773406127940,1.16203402,2151.4,2149.2,7.17660113]
[1773406128253,7.53289917,2151.9,2149.5,7.89545587]
[1773406128424,7.53289917,2151.9,2149.0,6.01338701]
[1773406128425,6.37113477,2151.4,2149.0,6.01338701]
[1773406128627,6.37113477,2151.0,2149.0,6.01338701]
[1773406128870,6.37113477,2151.5,2149.0,7.17671204]
[1773406129170,1.88206886,2151.3,2148.8,7.15286581]
[1773406129325,6.37113477,2151.2,2148.8,7.15286581]
[1773406129523,1.1625744,2150.4,2148.8,3.159]
[1773406129732,7.53370917,2150.4,2148.8,1.621]
[1773406129954,6.37113477,2149.9,2148.8,1.621]
[1773406130256,6.37113477,2149.7,2147.7,1.16398726]
[1773406130556,6.37113477,2149.3,2147.6,1.90310141]
[1773406130872,6.30793931,2148.9,2147.6,1.90310141]
[1773406131170,5.64620658,2150.2,2147.6,1.90310141]
[1773406131171,6.30793931,2150.0,2147.7,6.18704367]
[1773406131330,6.30793931,2150.1,2147.7,8.06911253]
[1773406131830,7.47071097,2150.1,2147.8,1.16398174]
[1773406132156,7.47051164,2150.5,2148.2,7.58963726]
[1773406132652,7.47051164,2150.5,2148.3,6.18704367]
[1773406133233,9.3525805,2150.5,2148.3,6.18704367]
[1773406133431,6.30793931,2150.4,2148.3,6.18704367]
[1773406133736,1.1641479,2151.2,2149.2,6.18704367]
[1773406133939,0.002,2151.2,2149.4,6.18704367]
[1773406134139,0.002,2151.2,2149.5,1.702]
[1773406134346,13.9702,2151.1,2149.6,1.705]
[1773406134536,7.47208812,2151.2,2149.6,1.705]
[1773406134740,6.30793931,2151.1,2149.6,1.705]
[1773406134935,0.002,2151.2,2149.6,1.705]
[1773406135350,6.30793931,2152.5,2150.4,6.18704367]
[1773406135530,1.16110222,2153.2,2150.8,6.18704367]
[1773406135531,7.47911368,2153.0,2150.8,6.18704367]
[1773406135749,6.30793931,2152.9,2150.9,2.88030415]
[1773406135953,1.17117437,2153.0,2150.9,2.88030415]
[1773406135954,0.01,2153.0,2151.0,6.18704367]
[1773406136478,0.01,2153.0,2150.9,4.76237301]
[1773406136479,6.30793931,2152.5,2150.3,1.724]
[1773406136679,6.30793931,2152.5,2150.4,6.18704367]
[1773406137032,1.88206886,2152.9,2150.4,6.18704367]
[1773406137255,6.30793931,2153.1,2151.1,6.18704367]
[1773406137468,1.88206886,2153.2,2151.1,6.18704367]
[1773406137769,8.19000817,2152.8,2150.6,1.16246628]
[1773406138067,7.46910976,2153.0,2150.6,7.34950995]
[1773406138269,6.30793931,2152.8,2150.6,7.34950995]
[1773406138439,6.30793931,2152.5,2150.3,2.8865744]
[1773406138630,1.88206886,2152.6,2150.3,1.724]
[1773406138631,6.30793931,2152.1,2150.3,1.724]
[1773406138831,6.30793931,2152.1,2150.3,2.88661795]
[1773406139039,6.30793931,2152.1,2150.3,2.8866138]
[1773406139263,6.30793931,2151.9,2150.3,2.88662395]
[1773406139443,6.30793931,2151.9,2150.3,2.88661917]
[1773406139761,1.161926,2151.6,2150.3,2.88661917]
[1773406139947,1.161926,2151.6,2150.3,2.88662281]
[1773406140143,13.9702,2151.5,2150.3,2.88662281]
[1773406140345,13.9702,2151.5,2150.3,1.724]
[1773406140569,7.46986531,2151.6,2150.3,1.724]
[1773406140869,6.30793931,2152.2,2150.4,0.04650297]
[1773406141162,20.27813931,2152.0,2150.3,2.88661498]
[1773406141361,6.30793931,2152.4,2150.4,1.88206886]
[1773406141568,1.16140046,2152.6,2150.3,2.88661498]
[1773406141569,6.30793931,2152.1,2150.3,2.88661498]
[1773406141766,1.16171003,2152.0,2150.5,1.16252034]
[1773406141937,1.16171003,2152.0,2150.4,4.65013089]
[1773406141938,7.46964934,2152.0,2150.6,0.04649865]
[1773406142138,6.30793931,2151.7,2150.3,1.724]
[1773406142539,6.30793931,2151.7,2150.4,0.04650297]
[1773406142740,6.30793931,2151.7,2150.3,2.88660465]
[1773406142741,13.9702,2151.5,2150.3,2.88660465]
[1773406142969,6.30793931,2151.7,2150.4,0.04650297]
[1773406143173,13.9702,2151.6,2150.5,0.04650081]
[1773406143341,2.69022733,2151.9,2150.4,0.04650297]
[1773406143680,1.16198001,2151.5,2150.5,0.04650081]
[1773406143842,4.64743137,2151.8,2150.6,0.04649865]
[1773406144159,13.9702,2151.5,2150.4,0.04650297]
[1773406144338,6.30793931,2151.8,2150.3,2.88659023]
[1773406144735,6.30793931,2151.8,2150.4,0.04650297]
[1773406144968,0.002,2151.5,2150.0,4.65099487]
[1773406145338,0.002,2151.5,2150.1,0.04650946]
[1773406145541,0.002,2151.5,2150.0,4.65099487]
[1773406145737,6.30793931,2151.3,2149.9,0.08970839]
[1773406145936,6.30793931,2151.0,2149.4,0.001]
[1773406146168,6.30793931,2150.5,2149.4,1.1641108]
[1773406146368,6.30793931,2150.5,2149.4,0.001]
[1773406146672,6.30793931,2150.5,2148.1,4.65524747]
[1773406146673,6.30793931,2149.6,2147.3,7.5841242]
[1773406146836,6.30793931,2149.6,2147.5,1.768]
[1773406147170,2.69022733,2149.9,2147.6,0.0465636]
[1773406147171,6.30793931,2148.9,2147.6,0.0465636]
[1773406147344,6.30793931,2148.9,2147.6,0.0475636]
[1773406147549,6.30793931,2148.9,2147.6,0.001]
[1773406147746,13.9702,2148.7,2147.7,1.16403594]
[1773406148050,6.30793931,2148.9,2147.7,1.16403594]
[1773406148051,7.47132625,2148.9,2147.7,1.16403594]
[1773406148254,6.30793931,2148.9,2147.8,0.04755926]
[1773406148463,7.47132609,2148.9,2147.7,1.16403594]
[1773406148646,7.47132609,2148.9,2147.8,0.04755926]
[1773406148846,7.47132609,2148.9,2147.8,0.04655926]
[1773406149048,6.30793931,2148.9,2147.9,0.001]
[1773406149245,6.30793931,2148.9,2147.9,0.0475571]
[1773406149456,1.16314426,2149.4,2147.9,0.001]
[1773406149673,6.30793931,2148.8,2147.9,0.001]
[1773406149862,6.30793931,2148.6,2147.5,2.93213137]
[1773406150059,6.30793931,2148.4,2147.6,0.001]
[1773406150356,1.16347988,2148.8,2147.7,0.001]
[1773406150557,1.16347988,2148.8,2147.1,1.16432049]
[1773406150558,7.47141919,2148.8,2147.2,0.04757228]
[1773406150770,6.30793931,2148.4,2147.2,0.001]
[1773406150974,6.30793931,2148.4,2147.2,0.04657228]
[1773406151263,6.30793931,2148.4,2147.3,0.001]
[1773406151469,6.30793931,2148.4,2147.1,0.04657444]
[1773406151650,6.30793931,2148.0,2146.4,6.43181824]
[1773406151977,6.30793931,2148.0,2146.4,4.65881824]
[1773406152161,6.30793931,2148.0,2146.5,1.81958746]
[1773406152361,6.30793931,2148.0,2146.5,1.773]
[1773406152673,6.30793931,2148.0,2146.6,1.773]
[1773406152970,6.30793931,2148.0,2146.4,4.65881824]
[1773406152971,13.9702,2147.8,2146.7,1.81958312]
[1773406153272,7.47184536,2148.0,2146.8,1.773]
[1773406153472,7.47184536,2148.0,2146.1,1.23661762]
[1773406153473,6.30793931,2147.5,2146.1,1.23661762]
[1773406153843,6.30793931,2147.1,2146.1,0.07172697]
[1773406154050,6.30793931,2147.1,2146.0,2.93691656]
[1773406154272,6.30793931,2147.1,2146.1,1.772]
[1773406154458,6.30793931,2147.1,2146.0,1.16491656]
[1773406154646,6.30793931,2147.1,2146.1,1.772]
[1773406154848,6.30793931,2147.1,2145.3,1.772]
[1773406155061,6.30793931,2147.0,2145.3,1.772]
[1773406155371,6.30793931,2147.0,2145.4,1.81861135]
[1773406155550,6.30793931,2147.0,2145.2,3.60575008]
[1773406155952,13.9702,2146.6,2145.2,3.60575008]
[1773406156172,7.47238252,2147.0,2145.2,3.60575008]
[1773406156545,6.30793931,2146.8,2145.2,3.60575008]
[1773406156745,6.30793931,2146.8,2145.3,1.7943523]
[1773406157078,20.27813931,2146.8,2145.4,1.79434904]
[1773406157255,6.30793931,2146.8,2145.4,0.02334904]
[1773406157457,6.30793931,2146.8,2145.5,1.771]
[1773406157642,6.30793931,2147.4,2145.6,0.02334253]
[1773406157844,7.47219209,2147.3,2145.7,1.16512093]
[1773406158143,13.9702,2147.0,2145.8,0.02332516]
[1773406158348,7.47219209,2147.3,2145.9,1.77]
[1773406158550,7.47219209,2147.3,2145.7,1.16512093]
[1773406158889,7.47219209,2147.3,2145.8,1.769]
[1773406158890,6.30793931,2146.7,2145.8,1.769]
[1773406159055,13.9702,2146.4,2145.8,1.769]
[1773406159252,6.30793931,2146.7,2145.6,1.1651638]
[1773406159447,6.30793931,2146.7,2145.6,0.001]
[1773406159846,6.30793931,2146.7,2145.7,1.768]
[1773406160053,13.9702,2146.1,2145.7,1.768]
[1773406160260,7.47253385,2146.7,2145.7,1.768]
[1773406160460,7.47252851,2146.7,2145.7,1.768]
[1773406160665,6.30793931,2147.3,2145.8,0.02333818]
[1773406160872,6.30793931,2147.3,2145.7,1.768]
[1773406160873,0.05821535,2147.2,2145.7,1.768]
[1773406161054,13.9702,2146.9,2145.8,1.767]
[1773406161255,7.47219497,2147.3,2145.9,1.78933058]
[1773406161552,13.9702,2146.9,2145.9,0.02333058]
[1773406161746,1.16427138,2147.3,2145.8,1.766]
[1773406161747,6.28739248,2147.3,2145.8,1.766]
[1773406161953,6.34560783,2147.2,2145.8,1.766]
[1773406162153,6.34560783,2147.2,2145.9,2.93001234]
[1773406162154,6.28739248,2146.9,2145.9,2.93001234]
[1773406162386,6.34561596,2146.9,2145.6,1.16613217]
[1773406162682,13.9702,2146.3,2145.6,1.16613217]
[1773406163079,13.9702,2146.0,2145.6,1.16613217]
[1773406163282,6.28739248,2146.9,2145.6,1.16613217]
[1773406163485,6.28739248,2146.7,2145.6,1.16613217]
[1773406163684,13.9702,2146.3,2145.7,1.763]
[1773406163993,6.28739248,2146.7,2145.7,1.763]
[1773406164284,6.3456241,2146.6,2145.8,1.16506664]
[1773406164484,6.3456241,2146.6,2144.6,0.07068671]
[1773406164659,6.3456241,2146.6,2144.7,0.02337621]
[1773406164660,6.28739248,2146.5,2144.7,0.02337621]
[1773406165096,13.9702,2146.2,2144.6,1.23635276]
[1773406165456,6.28739248,2146.4,2144.6,1.23635276]
[1773406165682,13.9702,2146.2,2144.7,1.76]
[1773406165886,6.28739248,2146.4,2144.7,1.76]
[1773406166085,13.9702,2146.0,2144.8,1.16560984]
[1773406166275,6.28739248,2146.4,2144.9,0.02338272]
[1773406166473,0.05823976,2146.3,2144.8,1.16560984]
[1773406166680,13.9702,2146.1,2144.8,1.16560984]
[1773406166870,6.28739248,2146.4,2144.8,1.16560984]
[1773406167193,0.05823976,2146.3,2144.8,1.16560984]
[1773406167397,0.05823976,2146.3,2144.9,5.88685745]
[1773406167565,13.9702,2146.0,2144.9,5.88685745]
[1773406167887,7.45186397,2146.9,2145.0,1.536]
[1773406168076,13.9702,2146.5,2145.1,1.16544683]
[1773406168277,0.05823704,2146.4,2145.2,1.756]
[1773406168484,0.05823704,2146.4,2145.3,1.756]
[1773406168804,1.0,2146.0,2145.3,1.756]
[1773406168958,1.0,2146.0,2145.1,1.16544683]
[1773406169164,1.0,2146.0,2145.1,2.92044683]
[1773406169592,13.9702,2145.4,2145.1,2.92044683]
[1773406169871,1.0,2146.0,2145.1,1.16544683]
[1773406170077,13.9702,2145.2,2144.4,0.001]
[1773406170290,6.28739248,2145.4,2144.2,1.16593601]
[1773406170486,6.28739248,2145.4,2144.3,0.02341532]
[1773406170689,13.9702,2144.8,2144.3,0.02341532]
[1773406170897,6.28739248,2145.9,2144.3,0.02341532]
[1773406171100,13.9702,2145.3,2144.3,0.02341532]
[1773406171299,6.28739248,2145.9,2144.3,0.02341532]
[1773406171592,13.9702,2145.5,2144.3,0.02341532]
[1773406171809,6.28739248,2145.9,2144.3,0.02341532]
[1773406172406,1.0,2146.0,2144.4,8.5792357]
[1773406172577,13.9702,2145.8,2144.5,5.90080419]
[1773406172906,1.0,2146.0,2144.5,5.90080419]
[1773406173107,14.02845061,2145.9,2144.5,5.87740843]
[1773406173309,13.9702,2145.9,2144.6,2.68765001]
[1773406173476,0.05825333,2145.8,2144.7,2.68765001]
[1773406173673,0.05825061,2145.9,2144.8,0.02339032]
[1773406173981,0.05825061,2145.9,2144.8,1.747]
[1773406174505,0.05825061,2145.9,2144.9,3.8610313]
[1773406174675,0.05825061,2145.9,2145.0,2.6954758]
[1773406175019,0.05825061,2145.9,2145.1,1.745]
[1773406175319,0.05825061,2145.9,2145.2,1.744]
[1773406175601,0.05825061,2145.9,2144.9,1.1655555]
[1773406175602,6.34564309,2145.9,2144.9,1.1655555]
[1773406175791,6.34564309,2145.9,2145.0,1.743]
[1773406176096,1.0,2146.0,2145.0,1.743]
[1773406176274,0.05825061,2145.9,2145.2,1.1653925]
[1773406176482,1.0,2146.0,2145.3,2.71149473]
[1773406176678,1.0,2146.0,2145.2,1.1653925]
[1773406176994,0.05825061,2145.9,2145.3,2.71157726]
[1773406177196,0.05825061,2145.9,2145.4,0.02336858]
[1773406177370,0.05825061,2145.9,2145.3,0.0233675]
[1773406177570,0.05825061,2145.9,2145.4,2.71361453]
[1773406177797,0.05825061,2145.9,2145.5,1.739]
[1773406178198,0.05825061,2145.9,2145.2,1.1653925]
[1773406178378,0.05825061,2145.9,2145.4,1.738]
[1773406178583,0.05825061,2145.9,2145.1,4.66157001]
[1773406178793,0.05825061,2145.9,2145.2,4.45492261]
[1773406179101,6.28739248,2146.7,2145.3,2.71692261]
[1773406179296,6.28739248,2146.5,2145.4,4.45392261]
[1773406179598,0.0349005,2146.4,2145.5,2.72008968]
[1773406179802,6.28739248,2146.3,2145.5,1.736]
[1773406179977,0.0349005,2146.2,2145.5,1.736]
[1773406180178,0.0349005,2146.2,2145.6,1.735]
[1773406180394,0.0349005,2146.2,2145.6,2.90016807]
[1773406180579,0.0349005,2146.2,2145.6,2.89916807]
[1773406180782,6.32229298,2146.2,2145.4,1.16528386]
[1773406181002,6.32229298,2146.2,2145.4,2.89928386]
[1773406181383,7.45229625,2146.1,2145.1,2.0950824]
[1773406181588,6.28739248,2145.9,2145.1,1.16540758]
[1773406181785,6.32229298,2145.8,2145.1,2.89740758]
[1773406181990,6.32229298,2145.8,2145.1,1.16540758]
[1773406182192,6.32229298,2145.8,2145.2,1.732]
[1773406182508,0.0349005,2145.8,2145.3,1.16533818]
[1773406182718,0.0349005,2146.2,2145.3,1.16533818]
[1773406183018,6.28739248,2146.7,2145.5,2.0950824]
[1773406183019,0.0349005,2146.1,2145.5,2.0950824]
[1773406183217,0.0349005,2146.6,2145.6,4.82284601]
[1773406183521,0.0349005,2146.6,2145.8,2.0950824]
[1773406183675,6.28939248,2147.1,2146.1,2.0950824]
[1773406183676,7.45377706,2147.1,2146.1,2.0950824]
[1773406183881,7.45377706,2147.1,2145.7,4.00245352]
[1773406183882,7.45377706,2147.1,2145.7,2.0950824]
[1773406183883,6.32229298,2147.0,2145.7,2.0950824]
[1773406184082,0.14948499,2146.9,2145.4,3.91277462]
[1773406184312,6.32229298,2146.8,2145.5,2.73098272]
[1773406184620,6.28739248,2146.6,2145.6,3.89615054]
[1773406184819,6.28739248,2146.6,2145.6,1.16516782]
[1773406185117,0.0349005,2146.5,2145.7,2.7316865]
[1773406185323,0.0349005,2146.5,2145.6,1.16516782]
[1773406185488,6.28739248,2146.6,2145.6,1.16516782]
[1773406185832,6.05529737,2147.1,2145.7,6.6401798]
[1773406186033,0.0349005,2147.0,2146.0,2.18477462]
[1773406186306,6.08819787,2147.0,2145.6,1.16516782]
[1773406186509,6.05329737,2146.8,2145.8,2.88903728]
[1773406186705,6.05329737,2146.6,2145.5,1.16521384]
[1773406187006,6.08819787,2146.5,2145.6,2.73194344]
[1773406187207,6.08819787,2146.5,2145.5,1.16521384]
[1773406187406,6.08819787,2146.5,2145.6,2.73233583]
[1773406187611,6.08819787,2146.5,2145.4,1.16525082]
[1773406187809,6.08819787,2146.5,2145.5,2.73293513]
[1773406187998,6.05329737,2146.2,2144.9,1.16551181]
[1773406188199,6.05329737,2146.0,2144.9,2.88651181]
[1773406188387,1.19991284,2145.9,2144.9,2.88651181]
[1773406188590,0.0349005,2145.8,2144.9,2.88651181]
[1773406188814,0.0349005,2145.9,2144.9,2.88651181]
[1773406189020,0.0349005,2145.9,2144.9,3.35028643]
[1773406189314,0.0349005,2145.9,2145.0,1.719]
[1773406189484,0.0349005,2145.9,2144.9,1.16551181]
[1773406189681,6.08819787,2145.9,2144.9,1.16555196]
[1773406189887,6.08819787,2145.9,2144.7,1.16664091]
[1773406190085,6.05329737,2145.7,2144.5,1.16675091]
[1773406190323,6.11155613,2145.6,2144.5,1.16676327]
[1773406190611,6.11155613,2145.6,2144.6,1.717]
[1773406190612,0.05825876,2145.6,2144.6,1.717]
[1773406190816,6.35303071,2145.7,2144.6,1.717]
[1773406191013,6.35303071,2145.7,2144.5,0.001]
[1773406191994,4.65961511,2146.3,2144.5,0.001]
[1773406191995,7.46141837,2146.6,2145.0,3.20196281]
[1773406192225,6.353009,2146.5,2144.8,1.714]
[1773406192518,7.51770704,2146.5,2145.1,6.34791727]
[1773406192729,7.51769951,2146.5,2145.1,6.34791727]
[1773406192900,7.45948277,2146.5,2145.1,1.74798883]
[1773406193228,7.5177171,2146.5,2145.1,1.713]
[1773406193396,7.5177171,2146.5,2145.1,1.712]
[1773406193790,7.51773786,2146.5,2145.1,1.712]
[1773406194214,6.29477467,2146.5,2145.1,1.712]
[1773406194421,6.29477467,2146.5,2145.2,0.0349872]
[1773406194590,7.4594731,2146.5,2145.3,1.16533818]
[1773406194791,6.353009,2146.5,2145.3,1.16533818]
[1773406194991,7.51771586,2146.5,2145.3,1.16533818]
[1773406195336,7.51771586,2146.5,2145.0,1.16550116]
[1773406195553,7.51771586,2146.5,2144.8,4.66222201]
[1773406195754,7.51771586,2146.5,2144.8,6.37122201]
[1773406196054,7.51771586,2146.5,2144.8,4.66222201]
[1773406196055,6.29477467,2146.3,2144.8,4.66222201]
[1773406196250,6.29477467,2146.1,2144.8,4.66222201]
[1773406196421,0.0582479,2146.0,2144.6,1.708]
[1773406196610,1.16499981,2146.0,2144.6,1.16569743]
[1773406196815,6.35302528,2145.9,2144.6,1.16569743]
[1773406197047,6.35302528,2145.9,2144.6,1.1996095]
[1773406197229,1.16488389,2146.2,2144.6,7.54752677]
[1773406197433,0.05824518,2146.1,2144.6,7.5136147]
[1773406197640,0.002,2147.3,2145.8,9.54988008]
[1773406197823,0.02528406,2147.1,2145.9,1.705]
[1773406198659,0.002,2147.1,2146.1,7.51282104]
[1773406198962,0.002,2147.1,2146.2,6.34791727]
[1773406199240,7.45810645,2149.0,2146.8,6.34791727]
[1773406199541,7.45810645,2149.0,2146.9,8.05091727]
[1773406199840,6.29477467,2148.9,2146.9,8.05091727]
[1773406200034,6.29477467,2148.9,2147.0,2.71710869]
[1773406200375,6.29477467,2148.9,2146.9,8.05091727]
[1773406200376,1.16322352,2149.2,2147.8,6.34791727]
[1773406200651,3.34131733,2148.1,2146.6,1.702]
[1773406200846,0.02328406,2148.0,2146.5,1.16463894]
[1773406201025,6.29477467,2148.1,2146.6,1.702]
[1773406201221,6.31805873,2148.0,2146.4,1.701]
[1773406201536,0.02328406,2148.0,2146.5,6.34791727]
[1773406201736,6.29477467,2148.5,2146.7,6.34791727]
[1773406202344,6.31805873,2148.4,2146.7,6.34791727]
[1773406202542,0.002,2148.1,2146.8,1.16452394]
[1773406202742,0.02528406,2148.1,2146.8,1.16452394]
[1773406202950,0.002,2148.1,2146.8,1.16452394]
[1773406203125,0.02528406,2148.1,2146.8,7.51244121]
[1773406203325,0.02528406,2148.1,2146.7,1.1645494]
[1773406203536,6.32005873,2148.1,2146.4,2.86274096]
[1773406203746,3.34131733,2147.9,2146.4,2.86274096]
[1773406203951,0.02328406,2147.8,2146.4,9.21065823]
[1773406204159,0.02328406,2148.0,2146.4,9.21065823]
[1773406204455,3.34131733,2147.9,2146.4,9.21065823]
[1773406204658,1.1872658,2147.8,2146.4,2.86274096]
[1773406204863,3.34131733,2147.6,2146.2,1.1648495]
[1773406205027,0.02328406,2147.5,2146.2,1.1648495]
[1773406205226,7.45875641,2147.8,2146.2,1.1648495]
[1773406205227,0.02328406,2147.7,2146.2,1.1648495]
[1773406205628,7.45875641,2147.8,2146.2,1.1648495]
[1773406205857,9.636092,2147.7,2146.2,1.1648495]
[1773406206155,0.02328406,2147.6,2146.2,1.1648495]
[1773406206358,3.34131733,2147.5,2146.2,1.1648495]
[1773406206554,0.02328406,2147.4,2146.2,2.8588495]
[1773406206732,1.16425278,2147.3,2146.2,2.8588495]
[1773406206931,1.16425278,2147.3,2146.2,2.90544348]
[1773406207132,0.02328406,2147.2,2146.2,9.25336075]
[1773406207352,4.65728393,2148.1,2146.5,6.34791727]
[1773406207353,0.002,2148.1,2146.5,6.34791727]
[1773406207661,1.18912472,2148.1,2146.5,6.34791727]
[1773406208436,1.18912472,2148.1,2146.6,1.691]
[1773406208640,1.18912472,2148.1,2146.8,1.16452394]
[1773406208826,6.29477467,2148.0,2146.7,1.691]
[1773406209140,6.31805873,2147.9,2146.7,1.691]
[1773406209340,6.31805873,2147.9,2146.6,1.16460981]
[1773406209535,6.31805873,2147.9,2146.4,1.69]
[1773406209730,6.29477467,2147.6,2146.4,1.69]
[1773406209924,0.02328406,2147.5,2146.4,1.69]
[1773406210444,6.31805873,2147.5,2146.3,1.16479287]
[1773406210649,6.31805873,2147.5,2146.2,4.6593887]
[1773406210650,6.31805873,2147.5,2146.2,1.16481842]
[1773406210854,1.16436123,2147.1,2145.9,4.66004238]
[1773406211067,0.02328406,2147.0,2146.0,1.687]
[1773406211964,0.02328406,2147.0,2145.9,11.00795965]
[1773406212333,0.02328406,2147.0,2145.9,4.66004238]
[1773406212334,3.36460139,2147.0,2145.9,4.66004238]
[1773406212533,0.02328406,2147.0,2146.0,0.04659832]
[1773406213033,0.02328406,2147.0,2145.9,0.04660049]
[1773406213034,1.1644697,2146.9,2145.9,0.04660049]
[1773406213245,1.1644697,2146.9,2145.3,1.16533818]
[1773406213246,6.31805873,2146.8,2145.3,1.16533818]
[1773406213450,6.29477467,2146.6,2145.2,0.001]
[1773406213669,6.29477467,2146.6,2145.2,1.1663869]
[1773406213964,9.636092,2146.2,2145.2,0.001]
[1773406214194,6.29477467,2146.2,2145.2,0.001]
[1773406214339,3.34131733,2145.9,2145.2,0.001]
[1773406214544,6.29477467,2145.8,2144.7,0.001]
[1773406214752,6.29477467,2145.8,2144.7,1.16666188]
[1773406214934,1.16512093,2145.7,2144.7,0.001]
[1773406215335,3.34131733,2145.4,2144.7,0.001]
[1773406215638,6.29477467,2145.5,2144.7,0.001]
[1773406215835,3.34131733,2145.1,2144.7,0.001]
[1773406216035,6.29477467,2145.5,2144.2,1.16692211]
[1773406216561,7.45966019,2146.2,2144.5,6.34791727]
[1773406216748,7.45966019,2146.2,2145.4,0.001]
[1773406216749,10.80097752,2146.2,2145.4,0.001]
[1773406216954,7.45966019,2146.2,2145.4,0.001]
[1773406217262,3.34131733,2145.7,2145.1,0.001]
[1773406217461,7.48294425,2146.2,2145.1,0.001]
[1773406217462,7.45966019,2146.2,2145.1,0.001]
[1773406217761,7.48294425,2146.2,2145.1,0.001]
[1773406218135,9.636092,2146.0,2145.1,0.001]
[1773406218467,1.16488552,2146.2,2145.1,0.001]
[1773406218764,4.50620285,2146.2,2145.1,0.001]
[1773406219261,0.02328406,2146.1,2145.1,0.001]
[1773406219834,0.02328406,2146.1,2145.1,6.34891727]
[1773406220062,0.02328406,2146.1,2145.1,0.001]
[1773406220642,0.02328406,2146.1,2145.1,6.34891727]
[1773406220856,7.52981027,2147.6,2145.7,6.02378391]
[1773406221038,7.52981027,2147.6,2145.8,1.16506664]
[1773406221235,6.36572013,2147.3,2145.6,1.671]
[1773406221446,6.36572013,2147.1,2145.6,1.671]
[1773406221717,3.34131733,2147.0,2145.7,0.04660483]
[1773406221868,6.36572013,2147.5,2145.7,6.07038874]
[1773406222249,1.16409014,2147.6,2146.0,6.02378391]
[1773406223066,7.52981027,2147.6,2146.1,1.16490377]
[1773406223238,7.52981027,2147.6,2146.2,6.02378391]
[1773406223239,1.16409014,2147.6,2146.2,6.02378391]
[1773406224134,3.34131733,2147.5,2146.2,6.02378391]
[1773406224538,1.16409014,2147.6,2146.2,6.02378391]
[1773406224756,4.50540747,2147.6,2146.2,6.02378391]
[1773406224955,1.16409014,2147.6,2146.2,6.02378391]
[1773406225141,1.16409014,2147.6,2146.2,7.18862518]
[1773406225769,3.34131733,2147.4,2146.2,7.18862518]
[1773406225970,1.16409014,2147.6,2146.2,7.18862518]
[1773406226152,3.34131733,2147.4,2146.2,7.18862518]
[1773406226466,1.16409014,2147.6,2146.2,7.18862518]
[1773406226775,1.16409014,2147.6,2146.2,1.16484127]
[1773406226776,3.34131733,2147.3,2146.2,1.16484127]
[1773406227269,3.34131733,2147.2,2146.2,1.16484127]
[1773406227468,7.52981027,2147.6,2146.2,1.16484127]
[1773406227657,3.34131733,2147.3,2145.9,1.16501234]
[1773406227840,7.52981027,2147.6,2145.9,1.16501234]
[1773406228183,3.34131733,2147.5,2145.9,1.16501234]
[1773406228384,6.36572013,2147.5,2145.9,1.16501234]
[1773406228667,3.34131733,2147.3,2145.9,1.16501234]
[1773406228840,1.16409014,2147.6,2146.0,6.02378391]
[1773406229342,1.16425278,2147.3,2146.1,1.16490377]
[1773406229953,7.52997291,2147.3,2146.0,6.02378391]
[1773406230255,7.52997291,2147.3,2145.6,1.671]
[1773406230256,7.52997291,2147.3,2145.7,1.16512093]
[1773406230759,7.52997291,2147.3,2145.8,0.04660266]
[1773406231077,7.52997291,2147.3,2145.7,1.16512093]
[1773406231256,1.16452394,2146.8,2145.7,1.16512093]
[1773406231650,3.34131733,2146.7,2145.7,7.18890484]
[1773406231846,1.16452394,2146.8,2145.7,7.18890484]
[1773406232169,3.34131733,2146.5,2145.7,7.18890484]
[1773406232351,1.16452394,2146.8,2145.6,2.83617038]
[1773406232676,1.16452394,2146.8,2145.3,7.1901167]
[1773406232677,3.34131733,2146.1,2145.3,7.1901167]
[1773406232854,7.27855744,2146.8,2145.3,7.23673022]
[1773406233064,7.27855744,2146.8,2145.3,7.1901167]
[1773406233386,3.34131733,2146.5,2145.3,7.1901167]
[1773406233686,3.34131733,2146.4,2145.3,7.1901167]
[1773406233881,7.27855744,2146.8,2145.3,7.1901167]
[1773406234258,7.27855744,2146.8,2145.4,0.04661135]
[1773406234456,7.27855744,2146.8,2145.3,7.1901167]
[1773406234760,1.16452394,2146.8,2145.4,5.93036732]
[1773406234964,1.16452394,2146.8,2145.4,5.88375597]
[1773406235178,3.34131733,2146.4,2145.4,5.88375597]
[1773406235384,1.16479522,2146.3,2145.5,1.16522955]
[1773406235777,3.34131733,2146.1,2145.5,1.16522955]
[1773406236381,1.16479522,2146.3,2145.5,1.21183873]
[1773406236595,1.16452394,2146.8,2145.5,7.0955947]
[1773406236796,3.34131733,2146.5,2145.5,7.04898552]
[1773406237083,1.16452394,2146.8,2145.6,0.046607]
[1773406237266,4.50606407,2146.4,2145.7,1.16512093]
[1773406237461,4.50606747,2146.4,2145.8,0.04660266]
[1773406237688,1.16475014,2146.4,2145.6,1.16513987]
[1773406237990,3.34131733,2146.0,2145.6,1.21174687]
[1773406238186,1.16475014,2146.4,2145.6,1.16513987]
[1773406238691,1.16475014,2146.4,2145.5,7.04894217]
[1773406238860,3.34131733,2146.0,2145.5,7.04894217]
[1773406239061,3.34131733,2146.0,2145.5,7.09555135]
[1773406239283,3.34131733,2145.9,2145.5,7.09555135]
[1773406239452,1.16452394,2146.8,2145.5,7.09555135]
[1773406239853,3.34131733,2146.2,2145.5,7.09555135]
[1773406240086,7.27855744,2146.8,2145.5,7.09555135]
[1773406240290,3.34131733,2146.3,2145.5,7.09555135]
[1773406240480,7.27855744,2146.8,2145.5,7.09555135]
[1773406240984,7.27855744,2146.8,2145.5,1.21179538]
[1773406241188,7.27855744,2146.8,2145.5,1.1651862]
[1773406241388,1.16479522,2146.3,2145.5,1.1651862]
[1773406241586,4.65831668,2146.7,2145.5,1.1651862]
[1773406241766,3.34131733,2146.4,2145.6,5.93036297]